fUST/lending_fUST_20260101
["ID","MTS","AMOUNT","RATE_DAILY","PERIOD"]
[400245325,1767215450120,-5028.62751312,0.00028219,2]
[400245326,1767215450130,-6346.03203856,0.00028219,2]
[400245327,1767215450139,-541.4869689,0.00028219,2]
[400245328,1767215450148,-1391.06123298,0.00028219,2]
[400245329,1767215450158,-685.02268095,0.00028219,2]
[400245330,1767215450167,-642.2974778,0.00028219,2]
[400245331,1767215450176,-677.94895572,0.00028219,2]
[400245332,1767215450186,-197.835449,0.00028219,7]
[400245333,1767215450195,-197.835449,0.00028219,7]
[400245334,1767215450205,-151.0,0.00028219,7]
[400245335,1767215450215,-197.835449,0.00028219,7]
[400245336,1767215450225,-197.835449,0.00028219,7]
[400245337,1767215450235,-754.40778,0.00028219,7]
[400245338,1767215450243,-754.40778,0.00028219,7]
[400245339,1767215450253,-151.0,0.00028219,7]
[400245340,1767215450263,-754.40778,0.00028219,7]
[400245341,1767215450272,-754.40778,0.00028219,7]
[400245342,1767215450282,-595.37131296,0.0002831,2]
[400245343,1767215450292,-2876.18991768,0.0002831,2]
[400245344,1767215450302,-321.0,0.00028314,2]
[400245345,1767215450312,-3147.76375777,0.00028316,2]
[400245346,1767215450322,-6464.62555377,0.00028375,17]
[400245347,1767215450332,-5000.0,0.00028375,14]
[400245348,1767215450341,-5000.0,0.00028375,16]
[400245349,1767215450354,-5000.0,0.00028375,19]
[400245350,1767215450364,-5000.0,0.00028375,14]
[400245351,1767215450374,-151.0,0.00028375,7]
[400245352,1767215450383,-151.0,0.00028375,7]
[400245353,1767215450392,-321.0,0.0002839,2]
[400245354,1767215450403,-151.0,0.00028416,7]
[400245355,1767215450413,-151.0,0.00028416,7]
[400245356,1767215450423,-151.0,0.00028416,7]
[400245357,1767215450433,-151.0,0.00028416,7]
[400245358,1767215450443,-151.0,0.00028416,7]
[400245359,1767215450453,-151.0,0.00028416,7]
[400245360,1767215450462,-151.0,0.00028416,7]
[400245361,1767215450472,-440.924061,0.00028416,7]
[400245362,1767215450481,-440.924061,0.00028416,7]
[400245363,1767215450491,-440.924061,0.00028416,7]
[400245364,1767215450501,-440.924061,0.00028416,7]
[400245365,1767215450510,-151.0,0.00028416,7]
[400245366,1767215450520,-151.0,0.00028416,7]
[400245367,1767215450530,-612.575308,0.00028416,7]
[400245368,1767215450665,-151.0,0.00028416,7]
[400245369,1767215450675,-612.575308,0.00028416,7]
[400245370,1767215450685,-612.575308,0.00028416,7]
[400245371,1767215450694,-612.575308,0.00028416,7]
[400245372,1767215450704,-151.0,0.00028416,7]
[400245373,1767215450713,-151.0,0.00028416,7]
[400245374,1767215450723,-151.0,0.00028416,7]
[400245375,1767215450732,-151.0,0.00028416,7]
[400245376,1767215450741,-465.090216,0.00028416,7]
[400245377,1767215450750,-367.945551,0.00028416,7]
[400245378,1767215450759,-465.090216,0.00028416,7]
[400245379,1767215450768,-293.104127,0.00028416,7]
[400245380,1767215450777,-367.945551,0.00028416,7]
[400245381,1767215450786,-465.090216,0.00028416,7]
[400245382,1767215450795,-293.104127,0.00028416,7]
[400245383,1767215450805,-367.945551,0.00028416,7]
[400245384,1767215450814,-465.090216,0.00028416,7]
[400245385,1767215450824,-293.104127,0.00028416,7]
[400245386,1767215450833,-367.945551,0.00028416,7]
[400245387,1767215450842,-293.104127,0.00028416,7]
[400245388,1767215450851,-151.0,0.00028416,7]
[400245389,1767215450860,-213.858622,0.00028416,7]
[400245390,1767215450869,-230.327504,0.00028416,7]
[400245391,1767215450879,-151.0,0.00028416,7]
[400245392,1767215450888,-151.0,0.00028416,7]
[400245393,1767215450897,-805.861522,0.00028416,7]
[400245394,1767215450910,-805.861522,0.00028416,7]
[400245395,1767215450920,-805.861522,0.00028416,7]
[400245396,1767215450930,-151.0,0.00028416,7]
[400245397,1767215450939,-805.861522,0.00028416,7]
[400245398,1767215450949,-151.0,0.00028416,7]
[400245399,1767215450958,-151.0,0.00028416,7]
[400245400,1767215450967,-151.0,0.00028416,7]
[400245401,1767215450978,-151.0,0.00028416,7]
[400245402,1767215450987,-151.0,0.00028416,7]
[400245403,1767215450999,-1559.059603,0.00028416,7]
[400245404,1767215451008,-1559.059603,0.00028416,7]
[400245405,1767215451018,-1559.059603,0.00028416,7]
[400245406,1767215451027,-1559.059603,0.00028416,7]
[400245407,1767215451037,-394.521351,0.00028416,7]
[400245408,1767215451047,-429.596572,0.00028416,7]
[400245409,1767215451056,-394.521351,0.00028416,7]
[400245410,1767215451066,-429.596572,0.00028416,7]
[400245411,1767215451075,-394.521351,0.00028416,7]
[400245412,1767215451084,-429.596572,0.00028416,7]
[400245413,1767215451094,-394.521351,0.00028416,7]
[400245414,1767215451103,-429.596572,0.00028416,7]
[400245415,1767215451112,-151.0,0.00028416,7]
[400245416,1767215451122,-151.0,0.00028416,7]
[400245417,1767215451131,-151.0,0.00028416,7]
[400245418,1767215451140,-151.0,0.00028416,7]
[400245419,1767215451150,-1719.972035,0.00028416,7]
[400245420,1767215451159,-151.0,0.00028416,7]
[400245421,1767215451168,-1719.972035,0.00028416,7]
[400245422,1767215451177,-1719.972035,0.00028416,7]
[400245423,1767215451186,-1719.972035,0.00028416,7]
[400245424,1767215451195,-151.0,0.00028416,7]
[400245425,1767215451205,-151.0,0.00028416,7]
[400245426,1767215451214,-151.0,0.00028416,7]
[400245427,1767215451223,-151.0,0.00028416,7]
[400245428,1767215451232,-200.0,0.00028416,7]
[400245429,1767215451242,-200.0,0.00028416,7]
[400245430,1767215451251,-200.0,0.00028416,7]
[400245431,1767215451261,-200.0,0.00028416,7]
[400245432,1767215451270,-200.0,0.00028416,7]
[400245433,1767215451280,-200.0,0.00028416,7]
[400245434,1767215451289,-151.0,0.00028416,7]
[400245435,1767215451299,-30115.31566406,0.000285,7]
[400245436,1767215451309,-197.239144,0.000285,7]
[400245437,1767215451319,-151.0,0.000285,7]
[400245438,1767215451328,-151.0,0.000285,7]
[400245439,1767215451338,-281.615911,0.000285,7]
[400245440,1767215451348,-323.507289,0.000285,7]
[400245441,1767215451357,-323.507289,0.000285,7]
[400245442,1767215451367,-323.507289,0.000285,7]
[400245443,1767215451376,-323.507289,0.000285,7]
[400245444,1767215451387,-389.397028,0.000285,7]
[400245445,1767215451397,-389.397028,0.000285,7]
[400245446,1767215451407,-151.0,0.000285,7]
[400245447,1767215451418,-389.397028,0.000285,7]
[400245448,1767215451427,-151.0,0.000285,7]
[400245449,1767215451436,-389.397028,0.000285,7]
[400245450,1767215451445,-372.889096,0.000285,7]
[400245451,1767215451455,-372.889096,0.000285,7]
[400245452,1767215451464,-372.889096,0.000285,7]
[400245453,1767215451473,-372.889096,0.000285,7]
[400245454,1767215451482,-247.168557,0.000285,7]
[400245455,1767215451499,-1264.830438,0.000285,7]
[400245456,1767215451515,-1264.830438,0.000285,7]
[400245457,1767215451527,-579.465896,0.000285,7]
[400245458,1767215451542,-1264.830438,0.000285,7]
[400245459,1767215451557,-579.465896,0.000285,7]
[400245460,1767215451570,-1264.830438,0.000285,7]
[400245461,1767215451585,-579.465896,0.000285,7]
[400245462,1767215451601,-579.465896,0.000285,7]
[400245463,1767215451616,-351.462962,0.000285,7]
[400245464,1767215451629,-351.462962,0.000285,7]
[400245465,1767215451643,-351.462962,0.000285,7]
[400245466,1767215451656,-351.462962,0.000285,7]
[400245467,1767215451671,-160.0,0.00028514,4]
[400245468,1767215451684,-323.0,0.00028564,2]
[400245469,1767215451697,-321.0,0.00028678,2]
[400245470,1767215451707,-26860.43220075,0.0002876,2]
[400245471,1767215451720,-2028.77969745,0.0002876,5]
[400245472,1767215451734,-19129.54201656,0.0002876,2]
[400245473,1767215451748,-5770.30317135,0.0002876,30]
[400245474,1767215451761,-151.0,0.0002876,7]
[400245475,1767215451776,-151.0,0.0002876,7]
[400245476,1767215451790,-151.0,0.0002876,7]
[400245477,1767215451802,-151.0,0.0002876,7]
[400245478,1767215451813,-151.0,0.0002876,7]
[400245479,1767215451824,-257.669759,0.0002876,7]
[400245480,1767215451839,-2000.0,0.00028779,7]
[400245481,1767215451853,-1122.61060038,0.00028785,2]
[400245482,1767215451865,-172.34644729,0.000288,7]
[400245483,1767215451878,-321.0,0.0002885,7]
[400245484,1767215451892,-232.1,0.00028852,3]
[400245485,1767215451904,-617.40005154,0.00028858,2]
[400245486,1767215451917,-2982.60894464,0.00028858,2]
[400245487,1767215451930,-321.0,0.00028928,2]
[400245488,1767215451941,-321.0,0.00028983,7]
[400245489,1767215451955,-889.58046621,0.00029,2]
[400245490,1767215451968,-2406.6075983,0.00029,10]
[400245491,1767215451980,-177.35,0.00029,2]
[400245492,1767215451992,-163.988889,0.00029,7]
[400245493,1767215452005,-163.988889,0.00029,7]
[400245494,1767215452016,-163.988889,0.00029,7]
[400245495,1767215452028,-163.988889,0.00029,7]
[400245496,1767215452040,-151.0,0.00029,7]
[400245497,1767215452052,-158.892051,0.00029,7]
[400245498,1767215452063,-158.892051,0.00029,7]
[400245499,1767215452075,-158.892051,0.00029,7]
[400245500,1767215452087,-158.892051,0.00029,7]
[400245501,1767215452098,-321.0,0.00029026,2]
[400245502,1767215452110,-160.0,0.00029036,5]
[400245503,1767215452123,-156.0,0.00029068,32]
[400245504,1767215452135,-1041.66666667,0.000291,7]
[400245505,1767215452147,-1149.95,0.000292,14]
[400245506,1767215452159,-151.0,0.000292,7]
[400245507,1767215452170,-162.481751,0.000292,7]
[400245508,1767215452182,-151.0,0.000292,7]
[400245509,1767215452193,-151.0,0.000292,7]
[400245510,1767215452205,-151.0,0.000292,7]
[400245511,1767215452216,-321.0,0.00029292,2]
[400245512,1767215452227,-3147.76375777,0.00029295,2]
[400245513,1767215452240,-321.0,0.00029386,2]
[400245514,1767215452251,-321.0,0.000294,2]
[400245515,1767215452264,-640.24385345,0.00029406,2]
[400245516,1767215452276,-323.0,0.00029477,7]
[400245517,1767215452287,-324.0,0.00029496,7]
[400245518,1767215452299,-422.6347024,0.000295,120]
[400245519,1767215452312,-9359.66,0.000295,2]
[400245520,1767215452325,-160.0,0.00029559,6]
[400245521,1767215452336,-323.0,0.00029604,2]
[400245522,1767215452347,-323.0,0.0002961,2]
[400245523,1767215452360,-321.0,0.00029665,7]
[400245524,1767215452372,-321.0,0.00029782,2]
[400245525,1767215452383,-151.0,0.000298,7]
[400245526,1767215452395,-151.0,0.000298,7]
[400245527,1767215452408,-151.0,0.000298,7]
[400245528,1767215452420,-151.0,0.000298,7]
[400245529,1767215452431,-151.0,0.000298,7]
[400245530,1767215452444,-158.022812,0.000298,7]
[400245531,1767215452457,-151.0,0.000298,7]
[400245532,1767215452468,-151.0,0.000298,7]
[400245533,1767215452478,-151.0,0.000298,7]
[400245534,1767215452487,-5000.0,0.00029871,2]
[400245535,1767215452497,-179.85611511,0.00029879,4]
[400245536,1767215452507,-663.93287602,0.00029954,2]
[400245537,1767215452517,-321.0,0.00029963,2]
[400245538,1767215452527,-540.6429873,0.00029976,2]
[400245539,1767215452670,-321.0,0.00029988,2]
[400245540,1767215452686,-699.612284,0.00029999,2]
[400245541,1767215452696,-1200.20317365,0.0003,2]
[400245542,1767215452705,-10188.87347094,0.0003,7]
[400245543,1767215452714,-184.0,0.0003,14]
[400245544,1767215452723,-166.0,0.0003,14]
[400245545,1767215452732,-368.0,0.0003,14]
[400245546,1767215452742,-321.0,0.00030026,2]
[400245547,1767215452751,-321.0,0.00030048,7]
[400245548,1767215452760,-160.0,0.00030082,7]
[400245549,1767215452770,-5051.80608518,0.000301,120]
[400245550,1767215452779,-321.0,0.00030215,2]
[400245551,1767215452788,-3147.76375777,0.00030274,2]
[400245552,1767215452798,-1500.0,0.00030293,7]
[400245553,1767215452807,-999.45551154,0.000303,2]
[400245554,1767215452817,-2219.40085755,0.000303,2]
[400245555,1767215452826,-500.0,0.00030333,7]
[400245556,1767215452835,-500.0,0.00030336,7]
[400245557,1767215452844,-769.35340109,0.0003037,7]
[400245558,1767215452853,-1500.0,0.0003039,7]
[400245559,1767215452862,-206.620926,0.000304,31]
[400245560,1767215452872,-152.548448,0.000304,31]
[400245561,1767215452881,-152.548448,0.000304,31]
[400245562,1767215452890,-152.548448,0.000304,31]
[400245563,1767215452899,-152.548448,0.000304,31]
[400245564,1767215452910,-368.0,0.00030411,14]
[400245565,1767215452919,-1500.0,0.00030419,7]
[400245566,1767215452928,-1500.0,0.00030468,7]
[400245567,1767215452938,-176.02,0.000305,7]
[400245568,1767215452947,-1888.298719,0.00030501,31]
[400245569,1767215452957,-1888.298719,0.00030501,31]
[400245570,1767215452966,-1888.298719,0.00030501,31]
[400245571,1767215452976,-1888.298719,0.00030501,31]
[400245572,1767215452985,-295.093194,0.00030501,31]
[400245573,1767215452995,-151.0,0.00030501,31]
[400245574,1767215453003,-151.0,0.00030501,31]
[400245575,1767215453012,-237.965495,0.00030501,31]
[400245576,1767215453021,-237.965495,0.00030501,31]
[400245577,1767215453030,-237.965495,0.00030501,31]
[400245578,1767215453040,-242.224845,0.00030501,31]
[400245579,1767215453049,-237.965495,0.00030501,31]
[400245580,1767215453058,-242.224845,0.00030501,31]
[400245581,1767215453067,-242.224845,0.00030501,31]
[400245582,1767215453076,-242.224845,0.00030501,31]
[400245583,1767215453085,-1062.636171,0.00030501,31]
[400245584,1767215453095,-1062.636171,0.00030501,31]
[400245585,1767215453104,-1062.636171,0.00030501,31]
[400245586,1767215453113,-1062.636171,0.00030501,31]
[400245587,1767215453122,-197.835449,0.00030501,31]
[400245588,1767215453132,-197.835449,0.00030501,31]
[400245589,1767215453142,-151.0,0.00030501,31]
[400245590,1767215453151,-197.835449,0.00030501,31]
[400245591,1767215453161,-197.835449,0.00030501,31]
[400245592,1767215453170,-754.40778,0.00030501,31]
[400245593,1767215453180,-754.40778,0.00030501,31]
[400245594,1767215453189,-151.0,0.00030501,31]
[400245595,1767215453198,-754.40778,0.00030501,31]
[400245596,1767215453207,-754.40778,0.00030501,31]
[400245597,1767215453217,-688.49839244,0.00030502,2]
[400245598,1767215453226,-1920.8654385,0.00030549,2]
[400245599,1767215453236,-260.8204353,0.00030549,2]
[400245600,1767215453246,-232.1,0.00030562,4]
[400245601,1767215453255,-160.0,0.00030605,8]
[400245602,1767215453265,-622.37855138,0.00030619,7]
[400245603,1767215453275,-2487.02469132,0.00030619,7]
[400245604,1767215453284,-151.0,0.00030771,31]
[400245605,1767215453294,-500.0,0.00030791,7]
[400245606,1767215453303,-1149.95,0.000308,14]
[400245607,1767215453312,-1500.0,0.00030845,7]
[400245608,1767215453321,-4149.1574363,0.00030867,2]
[400245609,1767215453331,-1500.0,0.00030873,7]
[400245610,1767215453341,-1500.0,0.00030909,7]
[400245612,1767215453350,-1500.0,0.00030932,7]
[400245613,1767215453360,-916.36,0.00030958,30]
[400245614,1767215453369,-193.78459303,0.00031,120]
[400245615,1767215453379,-200.76587943,0.00031,120]
[400245616,1767215453388,-178.86741209,0.00031,120]
[400245617,1767215453398,-200.60301448,0.00031,120]
[400245618,1767215453407,-161.0131865,0.00031,120]
[400245619,1767215453416,-198.07485528,0.00031,120]
[400245620,1767215453425,-216.44093064,0.00031,120]
[400245621,1767215453434,-183.42010434,0.00031,120]
[400245622,1767215453444,-309.65070131,0.00031,120]
[400245623,1767215453453,-206.24088796,0.00031,120]
[400245624,1767215453463,-1430.86618739,0.00031,120]
[400245625,1767215453472,-162.37843672,0.00031,120]
[400245626,1767215453482,-1500.0,0.00031006,7]
[400245627,1767215453492,-2000.0,0.00031024,7]
[400245628,1767215453501,-713.97283296,0.0003105,2]
[400245629,1767215453511,-500.0,0.0003108,7]
[400245630,1767215453521,-1500.0,0.00031092,7]
[400245631,1767215453531,-500.0,0.00031098,7]
[400245632,1767215453541,-9359.66,0.000311,2]
[400245633,1767215453551,-160.628252,0.000311,31]
[400245634,1767215453561,-290.310985,0.000311,31]
[400245635,1767215453571,-151.0,0.000311,31]
[400245636,1767215453582,-151.0,0.000311,31]
[400245637,1767215453592,-151.0,0.000311,31]
[400245638,1767215453602,-151.0,0.000311,31]
[400245639,1767215453613,-162.176438,0.000311,31]
[400245640,1767215453622,-440.924061,0.000311,31]
[400245641,1767215453632,-440.924061,0.000311,31]
[400245642,1767215453642,-440.924061,0.000311,31]
[400245643,1767215453651,-440.924061,0.000311,31]
[400245644,1767215453661,-151.0,0.000311,31]
[400245645,1767215453671,-151.0,0.000311,31]
[400245646,1767215453680,-612.575308,0.000311,31]
[400245647,1767215453689,-155.898305,0.000311,31]
[400245648,1767215453699,-612.575308,0.000311,31]
[400245649,1767215453709,-612.575308,0.000311,31]
[400245650,1767215453719,-612.575308,0.000311,31]
[400245651,1767215453729,-151.0,0.000311,31]
[400245652,1767215453738,-151.0,0.000311,31]
[400245653,1767215453748,-161.840074,0.000311,31]
[400245654,1767215453758,-805.861522,0.000311,31]
[400245655,1767215453767,-805.861522,0.000311,31]
[400245656,1767215453776,-805.861522,0.000311,31]
[400245657,1767215453786,-151.0,0.000311,31]
[400245658,1767215453795,-805.861522,0.000311,31]
[400245659,1767215453804,-151.0,0.000311,31]
[400245660,1767215453814,-151.0,0.000311,31]
[400245661,1767215453824,-151.0,0.000311,31]
[400245662,1767215453833,-151.0,0.000311,31]
[400245663,1767215453844,-151.0,0.000311,31]
[400245664,1767215453854,-1559.059603,0.000311,31]
[400245665,1767215453863,-1559.059603,0.000311,31]
[400245666,1767215453873,-1559.059603,0.000311,31]
[400245667,1767215453883,-1559.059603,0.000311,31]
[400245668,1767215453892,-394.521351,0.000311,31]
[400245669,1767215453902,-394.521351,0.000311,31]
[400245670,1767215453917,-394.521351,0.000311,31]
[400245671,1767215453926,-394.521351,0.000311,31]
[400245672,1767215453935,-151.0,0.000311,31]
[400245673,1767215453945,-151.0,0.000311,31]
[400245674,1767215453956,-151.0,0.000311,31]
[400245675,1767215453965,-160.0,0.00031128,9]
[400245676,1767215453974,-242.47185193,0.00031232,7]
[400245677,1767215453984,-3147.76375777,0.00031253,2]
[400245678,1767215453993,-169.0,0.0003126,45]
[400245679,1767215454003,-186.14883914,0.00031264,7]
[400245680,1767215454013,-743.8507612,0.00031286,7]
[400245681,1767215454023,-500.0,0.00031323,7]
[400245682,1767215454033,-1500.0,0.00031359,7]
[400245683,1767215454042,-24425.5686256,0.000314,10]
[400245684,1767215454052,-151.0,0.00031418,31]
[400245685,1767215454062,-151.0,0.00031418,31]
[400245686,1767215454071,-151.0,0.00031418,31]
[400245687,1767215454080,-289.342021,0.00031418,31]
[400245688,1767215454089,-151.0,0.00031418,31]
[400245689,1767215454098,-151.0,0.00031418,31]
[400245690,1767215454108,-151.0,0.00031418,31]
[400245691,1767215454117,-151.0,0.00031418,31]
[400245692,1767215454127,-169.466222,0.00031418,31]
[400245693,1767215454136,-169.466222,0.00031418,31]
[400245694,1767215454145,-169.466222,0.00031418,31]
[400245695,1767215454155,-169.466222,0.00031418,31]
[400245696,1767215454164,-151.0,0.00031418,31]
[400245697,1767215454174,-500.0,0.00031422,7]
[400245698,1767215454183,-1500.0,0.00031472,7]
[400245699,1767215454192,-916.36,0.00031506,31]
[400245700,1767215454202,-1226.0,0.00031569,30]
[400245701,1767215454211,-18560.0,0.00031569,30]
[400245702,1767215454221,-500.0,0.00031593,7]
[400245703,1767215454231,-740.38982778,0.00031598,2]
[400245704,1767215454240,-925.8021632,0.00031641,2]
[400245705,1767215454250,-166.0,0.00031644,14]
[400245706,1767215454259,-368.0,0.00031644,14]
[400245707,1767215454269,-160.0,0.00031651,10]
[400245708,1767215454278,-1500.0,0.00031679,7]
[400245709,1767215454288,-1500.0,0.00031687,7]
[400245710,1767215454297,-500.0,0.00031717,7]
[400245711,1767215454307,-1500.0,0.00031792,7]
[400245712,1767215454317,-1500.0,0.00031814,7]
[400245713,1767215454327,-151.0,0.00031895,31]
[400245714,1767215454336,-151.0,0.00031895,31]
[400245715,1767215454347,-1500.0,0.00031896,7]
[400245716,1767215454355,-819.5,0.00031899,30]
[400245717,1767215454365,-193.78459303,0.000319,120]
[400245718,1767215454374,-200.76587943,0.000319,120]
[400245719,1767215454384,-200.60301448,0.000319,120]
[400245720,1767215454394,-161.0131865,0.000319,120]
[400245721,1767215454404,-198.07485528,0.000319,120]
[400245722,1767215454413,-216.44093064,0.000319,120]
[400245723,1767215454422,-1430.86618739,0.000319,120]
[400245724,1767215454432,-162.37843672,0.000319,120]
[400245725,1767215454442,-1500.0,0.00031953,7]
[400245726,1767215454452,-577.78639864,0.00031976,2]
[400245727,1767215454462,-500.0,0.00031999,7]
[400245728,1767215454471,-26677.68431593,0.00032,120]
[400245729,1767215454481,-1041.66666667,0.00032,10]
[400245730,1767215454491,-1041.66666667,0.00032,120]
[400245731,1767215454500,-220.61404,0.00032,31]
[400245732,1767215454509,-465.090216,0.00032,31]
[400245733,1767215454519,-367.945551,0.00032,31]
[400245734,1767215454529,-465.090216,0.00032,31]
[400245735,1767215454538,-293.104127,0.00032,31]
[400245736,1767215454548,-367.945551,0.00032,31]
[400245737,1767215454558,-465.090216,0.00032,31]
[400245738,1767215454567,-293.104127,0.00032,31]
[400245739,1767215454576,-367.945551,0.00032,31]
[400245740,1767215454586,-465.090216,0.00032,31]
[400245741,1767215454595,-293.104127,0.00032,31]
[400245742,1767215454604,-367.945551,0.00032,31]
[400245743,1767215454614,-293.104127,0.00032,31]
[400245744,1767215454623,-151.0,0.00032,31]
[400245745,1767215454632,-151.0,0.00032,31]
[400245746,1767215454641,-151.0,0.00032,31]
[400245747,1767215454651,-429.596572,0.00032,31]
[400245748,1767215454660,-429.596572,0.00032,31]
[400245749,1767215454670,-429.596572,0.00032,31]
[400245750,1767215454679,-429.596572,0.00032,31]
[400245751,1767215454688,-151.0,0.00032,31]
[400245752,1767215454698,-1719.972035,0.00032,31]
[400245753,1767215454707,-151.0,0.00032,31]
[400245754,1767215454716,-1719.972035,0.00032,31]
[400245755,1767215454724,-1719.972035,0.00032,31]
[400245756,1767215454733,-1719.972035,0.00032,31]
[400245757,1767215454742,-239.000196,0.00032,31]
[400245758,1767215454752,-151.0,0.00032,31]
[400245759,1767215454761,-151.0,0.00032,31]
[400245760,1767215454771,-171.760476,0.00032,28]
[400245761,1767215454780,-151.0,0.00032,31]
[400245762,1767215454789,-500.0,0.00032021,7]
[400245763,1767215454798,-1500.0,0.00032024,7]
[400245764,1767215454807,-916.36,0.00032054,32]
[400245765,1767215454817,-1500.0,0.00032079,7]
[400245766,1767215454826,-1500.0,0.00032126,7]
[400245767,1767215454835,-767.7842514,0.00032146,2]
[400245768,1767215454845,-160.0,0.00032174,11]
[400245769,1767215454854,-1500.0,0.00032175,7]
[400245770,1767215454863,-3147.76375777,0.00032232,2]
[400245771,1767215454873,-500.0,0.00032252,7]
[400245772,1767215454882,-232.1,0.00032272,5]
[400245773,1767215454891,-1149.95,0.000324,14]
[400245774,1767215454901,-1500.0,0.00032412,7]
[400245775,1767215454913,-1500.0,0.00032468,7]
[400245776,1767215454923,-1500.0,0.00032508,7]
[400245777,1767215454932,-1500.0,0.00032515,7]
[400245778,1767215454941,-1500.0,0.0003252,7]
[400245779,1767215454951,-151.0,0.00032527,31]
[400245780,1767215454960,-151.0,0.00032527,31]
[400245781,1767215454969,-151.0,0.00032527,31]
[400245782,1767215454979,-156.330499,0.00032527,31]
[400245783,1767215454989,-500.0,0.00032535,7]
[400245784,1767215454998,-2918.46508754,0.00032551,7]
[400245785,1767215455007,-916.36,0.00032602,33]
[400245786,1767215455017,-796.19226871,0.00032694,2]
[400245787,1767215455026,-151.0,0.00032694,31]
[400245788,1767215455035,-151.0,0.00032694,31]
[400245789,1767215455044,-323.507289,0.00032694,31]
[400245790,1767215455053,-323.507289,0.00032694,31]
[400245791,1767215455062,-323.507289,0.00032694,31]
[400245792,1767215455071,-323.507289,0.00032694,31]
[400245793,1767215455080,-389.397028,0.00032694,31]
[400245794,1767215455089,-389.397028,0.00032694,31]
[400245795,1767215455098,-151.0,0.00032694,31]
[400245796,1767215455204,-389.397028,0.00032694,31]
[400245797,1767215455215,-151.0,0.00032694,31]
[400245798,1767215455224,-389.397028,0.00032694,31]
[400245799,1767215455233,-372.889096,0.00032694,31]
[400245800,1767215455243,-372.889096,0.00032694,31]
[400245801,1767215455252,-372.889096,0.00032694,31]
[400245802,1767215455262,-372.889096,0.00032694,31]
[400245803,1767215455271,-1264.830438,0.00032694,31]
[400245804,1767215455280,-1264.830438,0.00032694,31]
[400245805,1767215455289,-579.465896,0.00032694,31]
[400245806,1767215455299,-1264.830438,0.00032694,31]
[400245807,1767215455308,-579.465896,0.00032694,31]
[400245808,1767215455317,-1264.830438,0.00032694,31]
[400245809,1767215455326,-579.465896,0.00032694,31]
[400245810,1767215455336,-579.465896,0.00032694,31]
[400245811,1767215455346,-351.462962,0.00032694,31]
[400245812,1767215455355,-351.462962,0.00032694,31]
[400245813,1767215455365,-351.462962,0.00032694,31]
[400245814,1767215455374,-351.462962,0.00032694,31]
[400245815,1767215455383,-160.0,0.00032697,12]
[400245816,1767215455392,-9359.66,0.000328,2]
[400245817,1767215455402,-801.78,0.00032877,10]
[400245818,1767215455412,-500.0,0.00032877,5]
[400245819,1767215455422,-150.0,0.00032877,5]
[400245820,1767215455432,-200.76587943,0.000329,120]
[400245821,1767215455442,-200.60301448,0.000329,120]
[400245822,1767215455451,-1430.86618739,0.000329,120]
[400245823,1767215455460,-162.37843672,0.000329,120]
[400245824,1767215455469,-12931.52053187,0.00033,120]
[400245825,1767215455479,-126799.84228777,0.00033,20]